Cogmind - Beta 17 @@@ ROGUE MODE // 2026.07.31 @ 19:47:50 Player: Cinder Result: Destroyed by B-99 Colossus with Multirail Performance ------------- Evolutions (9) 4500 Regions Visited (22) 4400 Robots Destroyed (176) 880 Value Destroyed (8034) 8034 Prototype IDs (60) 1200 Alien Tech Used (2) 400 Bonus (12745) 12745 TOTAL SCORE: 32159 Bonus ------- High Alert Combat Kills 224 Follower Combat Kills 574 Aligned with FarCom 300 Met Zhirov 300 Met Warlord at Base 500 MAIN.C Attacked Warlord 500 Warlord Defense Kills 1400 Met Warlord at Research 2000 Met MAIN.C 5000 Met Warlord at Command 2000 Friendly Fire -53 Cogmind --------- Core Integrity 0/1600 Matter 293/300 Energy 12/100 System Corruption 0% Temperature Cool (0) Movement Core (50) Location -1/Command Parts ------- > --- POWER (2) -------- (None) > --- PROPULSION (8) --- Centrium Leg > --- UTILITY (11) ----- Enhanced Optical Array Improved Launcher Guidance Computer Experimental Core Analyzer Armor Integrity Analyzer Hacking Suite Improved Hacking Suite > --- WEAPON (4) ------- (None) > --- INVENTORY (5) ---- Centrium Leg Matter Compressor (250) Compact Linear Accelerator Peak State ------------ > --- POWER ------------ Micro Antimatter Reactor Light Quantum Reactor > --- PROPULSION ------- Biometal Leg Biometal Leg Biometal Leg Biometal Leg Enhanced Biometal Leg Centrium Leg Centrium Leg Centrium Leg > --- UTILITY ---------- Large Storage Unit Enhanced Optical Array Improved Launcher Guidance Computer Core Analyzer Experimental Core Analyzer Improved Reaction Control System Phase Shifter Layered Medium Armor Plating Centrium Light Armor Plating Hacking Suite Advanced Hacking Suite > --- WEAPON ----------- Compact Linear Accelerator Compact Linear Accelerator Compact Linear Accelerator Micro-nuke Launcher > --- INVENTORY -------- Backup Power III Micro Antimatter Reactor Xenon Bombardment Thruster Impulse Thruster Field Propulsion Array Impulse Thruster Array Matter Compressor Improved Reaction Control System Centrium Light Armor Plating System Shield Fusion Bomb Launcher [Rating: 189] Favorites ----------- Power Micro Fission Core Engine Heavy Ion Engine Power Core Micro Fission Core Reactor Micro Antimatter Reactor Propulsion Advanced Treads Treads Advanced Treads Leg Armored Leg Wheel Centrium Wheel Hover Unit Antigrav System Flight Unit Impulse Thruster Array Utility Enhanced Optical Array Device Improved Reaction Control System Storage High-capacity Storage Unit Processor Enhanced Optical Array Hackware Hacking Suite Protection Layered Medium Armor Plating Weapon Lance Energy Gun Medium Laser Energy Cannon Light EM Pulse Cannon Ballistic Gun Light Assault Rifle Ballistic Cannon Compact Linear Accelerator Launcher Advanced EMP Blaster Special Weapon Enhanced Flamer Impact Weapon Heavy Flail Slashing Weapon Katana Piercing Weapon Lance Special Melee Weapon Improved Datajack Build | -11 -10 -10 -10 -9 -8 -8 -8 -6 -5 -5 -5 -5 -4 -4 -4 -4 -4 -3 -3 -2 -1 -1 ------- Run | Yrd Mat Min Exi Min Mat Sto Rec Fac Fac Upp Upp Zhi Pro Fac Upp Upp War Pro Res Res Acc Com Slots Evolved 18 | . . . . . 4 . . 4 2 . . . . 2 . . . . 2 2 2 . Power 1 | . . . . . . . . 1 . . . . . . . . . . . . . . Propulsion 6 | . . . . . 3 . . . 1 . . . . 2 . . . . . . . . Utility 9 | . . . . . 1 . . 3 . . . . . . . . . . 1 2 2 . Weapon 2 | . . . . . . . . . 1 . . . . . . . . . 1 . . . Parts Attached 260 | 7 3 7 1 . 14 7 7 20 44 5 . 8 4 14 6 5 2 5 26 45 11 19 Power 45 | 1 1 . . . 4 2 . 2 10 4 . 1 1 3 . 1 . 1 3 6 2 3 Engine 18 | 1 1 . . . 2 2 . 1 2 2 . . 1 . . . . 1 1 2 1 1 Core 16 | . . . . . 2 . . 1 8 2 . . . 3 . . . . . . . . Reactor 11 | . . . . . . . . . . . . 1 . . . 1 . . 2 4 1 2 Propulsion 84 | 2 1 3 . . 4 . 4 4 19 . . 1 2 7 1 1 1 4 8 15 1 6 Treads 28 | . . . . . 3 . 4 4 6 . . . . 3 . 1 . . 6 . . 1 Leg 44 | 2 1 3 . . 1 . . . 13 . . . 2 4 . . 1 4 1 11 . 1 Wheel 1 | . . . . . . . . . . . . . . . 1 . . . . . . . Hover 2 | . . . . . . . . . . . . . . . . . . . . 2 . . Flight 9 | . . . . . . . . . . . . 1 . . . . . . 1 2 1 4 Utility 86 | 2 1 1 1 . 3 1 2 9 12 1 . 3 1 3 4 1 1 . 12 15 5 8 Device 20 | 1 . 1 . . 1 . 1 . . 1 . . . . 1 . . . 6 4 1 3 Storage 11 | 1 1 . . . 1 . . 1 1 . . 1 . . 1 . . . 2 1 . 1 Processor 18 | . . . . . 1 . . 4 3 . . 1 . . 1 1 . . 3 3 . 1 Hackware 10 | . . . . . . . . 3 . . . . . 1 . . . . . . 3 3 Protection 27 | . . . 1 . . 1 1 1 8 . . 1 1 2 1 . 1 . 1 7 1 . Artifact . | . . . . . . . . . . . . . . . . . . . . . . . Weapon 45 | 2 . 3 . . 3 4 1 5 3 . . 3 . 1 1 2 . . 3 9 3 2 Energy Gun 3 | 1 . . . . . . . 1 . . . . . . . . . . . 1 . . Energy Cannon 1 | . . . . . 1 . . . . . . . . . . . . . . . . . Ballistic Gun 6 | 1 . 2 . . 2 1 . . . . . . . . . . . . . . . . Ballistic Cannon 4 | . . . . . . . . . . . . . . . . . . . . 4 . . Launcher 12 | . . . . . . 3 . 1 1 . . . . 1 1 1 . . . 2 2 . Special Weapon 1 | . . 1 . . . . . . . . . . . . . . . . . . . . Impact Weapon 3 | . . . . . . . 1 . . . . . . . . . . . 2 . . . Slashing Weapon 6 | . . . . . . . . 2 2 . . . . . . . . . 1 . . 1 Piercing Weapon 8 | . . . . . . . . 1 . . . 3 . . . 1 . . . 1 1 1 Special Melee Weapon 1 | . . . . . . . . . . . . . . . . . . . . 1 . . Unidentified Prototypes 20 | . . . . . . 2 2 2 2 . . 5 . . . . . . 2 4 . 1 Corrupted Parts 3 | . . . . . . . . 1 . . . . . . . 1 1 . . . . . System Corruption 17 | . . . . . . . . 2 . . . . . . . 10 5 . . . . . Parts Lost 111 | . 1 5 . . 8 2 . . 22 . . . 5 7 . 2 4 1 25 1 11 17 Power 18 | . . 1 . . 2 . . . 4 . . . . 1 . . 1 . 5 . 2 2 Propulsion 47 | . 1 1 . . 4 1 . . 10 . . . 4 2 . 1 2 . 11 . 2 8 Utility 30 | . . . . . . 1 . . 6 . . . 1 4 . 1 . 1 6 . 5 5 Weapon 16 | . . 3 . . 2 . . . 2 . . . . . . . 1 . 3 1 2 2 Highest Loss Streak 14 | . 1 3 . . 7 2 . . 8 . . . 5 2 . 1 3 1 10 1 6 14 To Critical Strikes 3 | . . . . . . . . . . . . . . . . . . . . . 2 1 Average Backups 15 | 1 6 8 7 7 8 14 14 18 19 18 19 18 18 18 19 19 19 16 15 11 13 9 Power 1 | . 1 2 2 2 1 2 2 1 1 2 2 2 2 2 2 2 1 2 1 1 . . Propulsion 3 | . 1 2 2 2 1 3 3 5 4 2 2 2 . . 1 2 4 1 2 3 4 4 Utility 4 | . 1 2 3 3 4 5 5 4 6 7 7 6 5 5 4 4 4 3 4 5 5 3 Weapon 5 | . 1 1 . . 1 3 4 7 6 7 8 8 8 8 10 9 9 8 5 . 3 1 Tool/Special . | . . . . . . . . . . . . . . . . . . . . . . . Unused Backups 38 | . . . . . 2 . 3 5 6 1 1 1 . 1 1 . . . 5 9 . 3 Power 6 | . . . . . 1 . . . 2 . . . . . . . . . 1 2 . . Propulsion 7 | . . . . . . . . . 1 . . . . . . . . . 2 3 . 1 Utility 16 | . . . . . . . 3 2 2 . . 1 . . 1 . . . 1 4 . 2 Weapon 9 | . . . . . 1 . . 3 1 1 1 . . 1 . . . . 1 . . . Tool/Special . | . . . . . . . . . . . . . . . . . . . . . . . Average Slot Usage (%) 86 | . 100 98 85 85 75 76 97 94 94 89 88 91 80 81 87 85 83 92 77 83 72 62 Engine 4 | . 14 12 . . 2 9 9 12 2 2 11 8 5 3 . . . 2 2 . 1 2 Core 3 | . . . . . 4 . . . 7 7 . . . 6 10 5 5 2 1 . . . Reactor 1 | . . . . . . . . . . . . 2 1 . . 4 4 5 2 6 5 2 Treads 13 | . . . . . 13 22 42 33 20 . . . . 5 15 19 20 7 9 . . . Leg 13 | . 28 28 28 28 10 . . . 11 35 35 34 25 22 11 3 . 27 12 24 4 . Device 3 | . 14 14 10 . . . . . . . . . . . 3 1 . . 6 7 8 4 Storage 6 | . 14 14 14 14 8 9 9 6 5 5 5 5 5 5 5 5 5 5 3 3 4 3 Processor 13 | . . . . . 8 9 9 14 16 15 11 15 17 14 9 12 15 13 13 18 16 17 Hackware 1 | . . . . . . . . 3 . . . . . . . . . . . . 8 14 Protection 7 | . . . 3 14 8 9 8 8 9 5 5 4 5 6 10 10 10 11 4 6 5 . Ballistic Gun 2 | . 14 15 28 28 17 3 . . . . . . . . . . . . . . . . Launcher 1 | . . . . . . 14 15 . . 7 11 . . . . 5 1 4 . . 1 . Impact Weapon 1 | . . . . . . . 2 4 1 . . . . . . . . . 1 3 . . Slashing Weapon 2 | . . . . . . . . 4 9 5 5 . . . . . . . . . . 2 Piercing Weapon 5 | . . . . . . . . 1 5 1 . 15 17 14 14 9 13 10 13 . 1 2 Peak Build Rating 189 | 7 7 10 9 9 22 28 42 70 83 86 78 89 89 116 121 124 123 125 137 183 189 117 Average Rating 80 | 5 6 7 6 9 16 26 36 57 72 80 78 83 77 97 118 118 117 122 110 141 133 97 On Entrance 64 | . 7 7 6 9 9 22 27 38 63 71 78 78 87 79 108 120 117 100 122 62 181 83 Avg Prop Armor Cover (%) 10 | . . . . . . . 14 5 5 . . . . 9 15 13 13 9 10 8 . 22 Naked Turns . | . . . . . . . . . . . . . . . . . . . . . . . Heaviest Build 98 | 15 20 20 15 15 36 43 42 82 93 98 87 86 86 80 85 94 95 88 94 86 86 42 Greatest Support 232 | 20 20 20 20 20 62 62 108 128 158 97 97 97 102 175 175 205 175 123 151 232 232 40 Greatest Overweight (x) 28 | . . . . . 3 . . 1 1 1 . 28 1 1 . . . . 1 1 1 1 Average Overweight (x) . | . . . . . . . . . . . . . . . . . . . . . . . Largest Inventory Capacity 20 | 8 10 10 10 10 15 15 15 20 20 20 20 20 20 20 20 20 20 20 20 15 15 15 Average Capacity 17 | 7 9 10 10 10 14 15 15 19 20 20 20 20 20 20 20 20 20 20 18 13 15 10 Most Carried 20 | 2 8 9 8 7 13 15 15 20 20 20 20 20 20 20 20 20 20 19 20 15 15 14 Average Carried 15 | 1 6 7 7 7 8 14 14 19 19 19 19 19 19 18 19 19 19 16 15 12 13 9 Final Capacity 20 | 8 10 10 10 10 15 15 15 20 20 20 20 20 20 20 20 20 20 20 10 15 15 5 Final Carried 20 | 2 7 7 7 7 13 15 15 20 20 20 20 20 19 20 20 20 20 17 6 15 14 3 Class Distribution -------------------- 38% | Mutant 21% | Scavenger-Mutant 15% | Gladiator 6% | Scavenger-Gladiator 6% | Scavenger-Gunner 4% | Derelict-Mutant Dominant Class ---------------- Mutant | -10/Materials Scavenger-Mutant | -10/Mines Mutant | -10/Exiles Scavenger-Mutant | -9/Mines Scavenger-Mutant | -8/Materials Mutant | -8/Storage Mutant | -8/Recycling Mutant | -6/Factory Scavenger-Mutant | -5/Factory Scavenger-Mutant | -5/Upper Caves Mutant | -5/Upper Caves Gladiator | -5/Zhirov Gladiator | -4/Proximity Caves Gladiator | -4/Factory Mutant | -4/Upper Caves Mutant | -4/Upper Caves Mutant | -4/Warlord Derelict-Mutant | -3/Proximity Caves Derelict-Mutant | -3/Research Scavenger-Gunner | -2/Research Hacker-Sprinter | -1/Access Hacker-Mutant | -1/Command Resources | -11 -10 -10 -10 -9 -8 -8 -8 -6 -5 -5 -5 -5 -4 -4 -4 -4 -4 -3 -3 -2 -1 -1 ----------- Run | Yrd Mat Min Exi Min Mat Sto Rec Fac Fac Upp Upp Zhi Pro Fac Upp Upp War Pro Res Res Acc Com Matter Collected 8031 | 284 133 103 . 10 300 159 84 532 539 146 115 150 315 182 516 338 813 159 949 1041 286 877 Remotely . | . . . . . . . . . . . . . . . . . . . . . . . Salvage Created 8515 | 127 347 70 . . 410 552 . 696 2374 200 152 . 94 342 86 360 529 204 1402 168 162 240 Parts 425 | 6 24 3 . . 23 30 . 22 128 8 3 . 7 19 6 22 28 6 70 2 8 10 Haulers Intercepted 7 | . 1 . . . . . . 2 2 . . . . . . . . . 1 1 . . Recyclers Shooed 2 | 1 . . . . . . . . 1 . . . . . . . . . . . . . Parts Field Recycled . | . . . . . . . . . . . . . . . . . . . . . . . Retrieved Matter . | . . . . . . . . . . . . . . . . . . . . . . . Parts Self-Destructed 32 | . . . . . . . . . . . 6 . 6 . 2 13 . 5 . . . . Prevented 13 | . . . . . . . . . . . 6 . . . . 6 . 1 . . . . Parts Restored . | . . . . . . . . . . . . . . . . . . . . . . . Kills | -11 -10 -10 -10 -9 -8 -8 -8 -6 -5 -5 -5 -5 -4 -4 -4 -4 -4 -3 -3 -2 -1 -1 ------- Run | Yrd Mat Min Exi Min Mat Sto Rec Fac Fac Upp Upp Zhi Pro Fac Upp Upp War Pro Res Res Acc Com Combat Hostiles Destroyed 140 | . 10 5 . . 8 6 . 4 36 2 5 . 1 5 8 9 11 3 15 3 5 4 Melee 54 | . . . . . . . . 4 34 . 1 . 1 4 . 2 1 . 7 . . . Guns 21 | . 10 3 . . 8 . . . . . . . . . . . . . . . . . Cannons 7 | . . 2 . . . . . . . . . . . . . . . . . 3 . 2 AOE 53 | . . . . . . 6 . . . 2 4 . . . 8 7 10 3 6 . 5 2 Classes Destroyed 21 | 2 3 1 . . 3 2 . 1 1 1 . . 1 . . . 3 . . 3 . . Worker 8 | . . . . . . 2 . 1 1 . . . . . . . . . . . 2 2 Builder 6 | . . . . . . 4 . 1 . . . . . . . . . . 1 . . . Tunneler 3 | 2 . . . . . . . 1 . . . . . . . . . . . . . . Hauler 7 | . 1 . . . . . . 2 2 . . . . . . . . . 1 1 . . Recycler 10 | 1 . . . . . 1 . 2 4 . . . . . . . . . 1 . . 1 Mechanic 1 | . . . . . . . . . . . . . . . . . 1 . . . . . Watcher 3 | . . . . . . . . . 1 . . . . . . . . . 1 . . 1 Swarmer 39 | . 5 2 . . . . . . 16 . 2 . . . 4 3 . 3 . . . 4 Saboteur 1 | . . . . . . . . . . . . . . . . . 1 . . . . . Grunt 37 | . 5 1 . . 3 2 . . 7 2 2 . . 3 . . 4 . 8 . . . Brawler 1 | . . . . . 1 . . . . . . . . . . . . . . . . . Duelist 1 | . . . . . . . . . . . . . . . . . . . . 1 . . Protector 1 | . . . . . . . . . . . . . . . . . 1 . . . . . Sentry 9 | . . . . . 2 3 . 1 2 . 1 . . . . . . . . . . . Hunter 18 | . . . . . 2 1 . . 6 . . . . . . 4 . . 2 . 3 . Programmer 28 | . . . . . . . . 3 5 . . . . 2 4 2 5 . 5 . 2 . Behemoth 1 | . . . . . . . . . . . . . 1 . . . . . . . . . Striker 1 | . . . . . . . . . . . . . . . . . . . . 1 . . Executioner 1 | . . . . . . . . . . . . . . . . . . . . 1 . . Samaritan 3 | . . . . . . . . . . 2 . . . . . 1 . . . . . . Assembled 2 | . . 2 . . . . . . . . . . . . . . . . . . . . Best Kill Streak 9 | 3 3 2 . . 5 8 . 1 5 2 3 . 1 2 4 3 8 3 9 2 5 6 Combat Bots Only 7 | . 2 2 . . 5 3 . 1 4 2 3 . 1 2 4 3 7 3 6 2 3 3 Max Kills in Single Turn 3 | 1 1 1 . . 1 3 . 1 1 1 2 . 1 1 3 3 2 1 2 1 2 2 Gunslinging . | . . . . . . . . . . . . . . . . . . . . . . . Exploded 3 | . . . . . . 1 . . . 1 2 . . . 3 2 2 1 2 . 1 2 Melee 1 | . . . . . . . . 1 1 . 1 . 1 1 . 1 1 . 1 . . . Uniques/NPCs Destroyed . | . . . . . . . . . . . . . . . . . . . . . . . Combat | -11 -10 -10 -10 -9 -8 -8 -8 -6 -5 -5 -5 -5 -4 -4 -4 -4 -4 -3 -3 -2 -1 -1 -------- Run | Yrd Mat Min Exi Min Mat Sto Rec Fac Fac Upp Upp Zhi Pro Fac Upp Upp War Pro Res Res Acc Com Hostile Shots Fired 1810 | . 48 47 . . 93 12 . 50 437 7 15 . 29 109 40 74 113 4 409 26 143 154 Missed 576 | . 17 10 . . 11 8 . 14 121 7 6 . 3 36 10 17 40 3 133 15 73 52 Hits 1234 | . 31 37 . . 82 4 . 36 316 . 9 . 26 73 30 57 73 1 276 11 70 102 Melee 3 | . . . . . . . . . . . . . . . . . . . . . . 3 Projectile 1231 | . 31 37 . . 82 4 . 36 316 . 9 . 26 73 30 57 73 1 276 11 70 99 AOE 10 | . . . . . . . . . 1 . . . . 3 . . . . . . . 6 Critical Strikes 54 | . 1 1 . . 1 . . 2 15 . . . 2 6 . . 1 . 14 . 5 6 Part Disruptions 5 | . . . . . . . . . 1 . . . . . . . 1 . 3 . . . Damage Taken 25257 | . 394 432 . . 1292 312 . 520 6083 . 256 . 854 2012 404 918 1588 44 5401 260 1697 2790 Core 3523 | . 48 59 . . 276 14 . 35 613 . 25 . 174 82 . 18 96 . 426 49 174 1434 Absorbed by Shields 519 | . . . . . . . . . . . . . . . 135 206 . . . . . 178 Reduced by Siege Mode 64 | . . . . . . . . . . . . . . . . 6 24 . 34 . . . Ignored by Resistances 315 | . . . . . . 32 . 12 . . . . . 81 . . . . 190 . . . Regen/Repaired (Parts) 535 | . . . . . . . . . 148 . . . . . . . 387 . . . . . Core Remaining (%) 69 | 100 . . . 57 . . 47 95 . . . . 18 . . . . 82 60 96 . . Volleys Fired 221 | 8 31 18 . . 42 9 . . . 2 4 . . 4 17 13 16 3 12 8 19 15 Largest 3 | 2 2 2 . . 2 2 . . . 2 2 . . 1 1 2 2 1 1 3 3 2 Hottest 174 | 70 70 100 . . 76 72 . . . 83 83 . . 40 43 92 92 49 49 174 174 116 Shots Fired 378 | 16 62 36 . . 80 17 . . . 3 9 . . 4 15 24 30 3 12 24 21 22 Gun 187 | 16 62 31 . . 77 1 . . . . . . . . . . . . . . . . Cannon 53 | . . . . . 3 . . . . . . . . . . . . . . 24 5 21 Launcher 133 | . . . . . . 16 . . . 3 9 . . 4 15 24 30 3 12 . 16 1 Special 5 | . . 5 . . . . . . . . . . . . . . . . . . . . Kinetic 186 | 8 31 19 . . 77 1 . . . . . . . . . . . . . 24 5 21 Thermal 56 | 8 31 17 . . . . . . . . . . . . . . . . . . . . Explosive 65 | . . . . . . . . . . 2 4 . . . 15 13 14 . . . 16 1 Electromagnetic 71 | . . . . . 3 16 . . . 1 5 . . 4 . 11 16 3 12 . . . Robot Hit Streak 18 | 5 10 9 . . 12 3 . . . 5 2 . . 5 11 6 18 1 12 17 9 10 Robot Miss Streak 9 | 1 3 9 . . 2 3 . . . . 2 . . . 1 4 2 2 . 4 1 6 Penetration Max . | . . . . . . . . . . . . . . . . . . . . . . . Secondary Targets 1 | . . . . . 1 . . . . . . . . . . . . . . . . . Max Gunslinging Chain 1 | . . . . . 1 . . . . . . . . . . . . . . . . . Shots Hit Robots 468 | 12 39 20 . . 63 9 . 21 113 4 5 . 9 17 14 15 25 2 66 15 9 10 Core Hits 328 | 4 18 12 . 1 21 17 . 7 53 9 9 . 3 11 13 20 56 6 32 8 13 15 Critical Kills 1 | . . . . . 1 . . . . . . . . . . . . . . . . . Critical Parts Destroyed 7 | . . . . . . . . 2 . . . . . . . . . . 5 . . . Critical Strikes 52 | 1 2 3 . . 1 . . 3 24 . . . 1 5 . 1 . . 8 2 . 1 Burn 6 | 1 2 3 . . . . . . . . . . . . . . . . . . . . Destroy 1 | . . . . . 1 . . . . . . . . . . . . . . . . . Blast 1 | . . . . . . . . . . . . . . . . . . . . 1 . . Smash 7 | . . . . . . . . 2 . . . . . . . . . . 5 . . . Sever 26 | . . . . . . . . 1 23 . . . . . . . . . 1 . . 1 Impale 11 | . . . . . . . . . 1 . . . 1 5 . 1 . . 2 1 . . Melee Attacks 347 | . . . . . . . . 25 171 2 3 . 11 28 1 4 2 1 87 4 3 5 Impact 40 | . . . . . . . . 7 11 . . . . . . . . . 22 . . . Slashing 162 | . . . . . . . . 11 139 . 3 . . . . . . . 7 . . 2 Piercing 145 | . . . . . . . . 7 21 2 . . 11 28 1 4 2 1 58 4 3 3 Sneak Attacks 31 | . . . . . . . . 8 11 2 . . . . 1 . 1 . 6 1 . 1 Combat Hostiles 5 | . . . . . . . . 1 3 . . . . . . . 1 . . . . . Follow-up Attacks 68 | . . . . . . . . 3 37 . . . 1 4 . . . . 23 . . . Damage Inflicted 23397 | 150 529 260 . 6 662 895 7 1191 4620 388 653 . 320 814 1170 1599 3380 173 3445 692 1548 895 Guns 1446 | 150 510 189 . . 597 . . . . . . . . . . . . . . . . . Cannons 912 | . . . . . 40 . . . . . . . . . . . . . . 529 . 343 Explosions 11139 | . . . . . . 889 . . . 291 595 . . 344 1107 1486 3313 116 1118 . 1548 332 Melee 9671 | . . . . . . . . 1191 4557 97 58 . 320 470 63 113 67 57 2295 163 . 220 Ramming 184 | . 19 26 . 6 25 6 7 . 63 . . . . . . . . . 32 . . . Kinetic 1941 | 74 271 127 . . 597 . . . . . . . . . . . . . . 529 . 343 Thermal 1062 | 76 239 107 . . . 130 . . . . . . . . . 73 437 . . . . . Explosive 6935 | . . . . . . . . . . 278 473 . . . 1107 993 2204 . . . 1548 332 Electromagnetic 3604 | . . . . . 40 759 . . . 13 122 . . 344 . 420 672 116 1118 . . . Impact 1328 | . . . . . . . . 515 206 . . . . . . . . . 607 . . . Slashing 4581 | . . . . . . . . 455 3888 . 58 . . . . . . . 84 . . 96 Piercing 3762 | . . . . . . . . 221 463 97 . . 320 470 63 113 67 57 1604 163 . 124 Highest Corruption 36 | . . . . . . 1 1 2 13 13 14 14 14 15 18 31 36 4 23 2 2 2 Average Corruption 8 | . . . . . . 1 1 2 5 13 13 14 14 8 15 28 10 4 15 2 1 1 Corruption Purged 2 | . . . . . . . . . . . . . . . . . . . . . . 2 Corruption Blocked . | . . . . . . . . . . . . . . . . . . . . . . . Effects 237 | . . . . . . . 6 15 47 17 8 9 12 7 33 30 7 6 34 3 1 2 Message Errors 64 | . . . . . . . 1 7 18 4 3 1 4 1 9 8 1 . 7 . . . Matter Fused 66 | . . . . . . . 2 4 14 4 2 3 . 4 12 6 2 2 8 2 . 1 Heat Flow Errors 28 | . . . . . . . . 2 7 3 1 2 2 . 3 3 1 . 4 . . . Energy Discharges 28 | . . . . . . . 2 2 5 1 1 2 4 . 2 1 2 1 4 1 . . Parts Rejected 3 | . . . . . . . . . . . . . . . 1 1 . 1 . . . . Parts Fused 2 | . . . . . . . . . . . . . . 1 . . . . 1 . . . Data Loss (minor) 19 | . . . . . . . 1 . 1 3 . . 1 . 4 3 . 2 3 . 1 . Data Loss (major) 13 | . . . . . . . . . 2 . . 1 1 . . 4 1 . 3 . . 1 Misfires 3 | . . . . . . . . . . 1 1 . . . . 1 . . . . . . Alerts 2 | . . . . . . . . . . . . . . 1 . . . . 1 . . . Misdirections 4 | . . . . . . . . . . . . . . . . 1 . . 3 . . . Weapon Failures 5 | . . . . . . . . . . 1 . . . . 2 2 . . . . . . Overload Shots . | . . . . . . . . . . . . . . . . . . . . . . . Overflow Damage 1744 | . . . . . . 10 . 433 278 . 6 . . 35 67 107 180 11 410 86 101 20 Projectiles 10 | . . . . . . . . . . . . . . . . . . . . . . 10 Explosions 537 | . . . . . . 10 . . . . 6 . . . 44 107 180 11 68 . 101 10 Melee 1197 | . . . . . . . . 433 278 . . . . 35 23 . . . 342 86 . . Knockbacks 15 | . . . . . . . . 4 4 . . . . . . . . . 1 3 . 3 Impact 9 | . . . . . . . . 4 4 . . . . . . . . . 1 . . . Kinetic 6 | . . . . . . . . . . . . . . . . . . . . 3 . 3 Secondary . | . . . . . . . . . . . . . . . . . . . . . . . Self-Inflicted Damage 913 | . . . . . . 202 . . . . 82 . . . . 158 51 23 282 . 88 27 Shots 42 | . . . . . . 13 . . . . 4 . . . . 7 2 1 10 . 4 1 Rammed 10 | . . . . . 2 1 1 . 2 . . . . . . . . . 4 . . . Targets Rammed 28 | . 4 10 . 1 2 1 1 . 4 . . . . . . . . . 5 . . . Kicked 17 | . 4 10 . 1 . . . . 1 . . . . . . . . . 1 . . . Crushed 1 | . . . . . . . . . 1 . . . . . . . . . . . . . Highest Temperature 355 | 27 159 97 . . 9 27 . 167 267 102 249 258 355 8 145 238 250 . 230 235 33 . Average Temperature 70 | 13 47 34 . . 5 9 . 78 102 43 82 95 149 8 71 112 97 . 95 108 16 . Received Heat Transfer 2839 | . 186 24 . . 387 18 . 30 688 . 36 . 461 316 . . 189 . 426 27 27 24 Effects 1 | . . . . . . . . . . . . 1 . . . . . . . . . . Interference 1 | . . . . . . . . . . . . 1 . . . . . . . . . . Siege Activations 5 | . . . . . . . . . . . . . . . 1 2 1 . 1 . . . Total Turns 56 | . . . . . . . . . . . . . . . 9 17 13 . 17 . . . Longest Duration 17 | . . . . . . . . . . . . . . . 9 13 13 . 17 . . . Martial Activations . | . . . . . . . . . . . . . . . . . . . . . . . Shielding Activations . | . . . . . . . . . . . . . . . . . . . . . . . Robots Disrupted . | . . . . . . . . . . . . . . . . . . . . . . . Combat Hostiles . | . . . . . . . . . . . . . . . . . . . . . . . Robots Corrupted 10 | . . . . . . . . 4 2 . . . . 1 . . . . 3 . . . Combat Hostiles 5 | . . . . . . . . . 2 . . . . 1 . . . . 2 . . . Parts Fried 26 | . . . . . . 5 . 6 2 . . . . 3 . 1 1 1 7 . . . Impact Corruptions 23 | . . . . . . . . 12 2 . . . . . . . . . 9 . . . Robots Melted . | . . . . . . . . . . . . . . . . . . . . . . . Combat Hostiles . | . . . . . . . . . . . . . . . . . . . . . . . Parts Melted 8 | 2 5 1 . . . . . . . . . . . . . . . . . . . . Heat Transferred 2646 | 296 851 899 . . . 150 . . . . . . . . . 50 400 . . . . . Parts Sabotaged . | . . . . . . . . . . . . . . . . . . . . . . . Parts Stolen . | . . . . . . . . . . . . . . . . . . . . . . . Parts Stripped . | . . . . . . . . . . . . . . . . . . . . . . . Power Chain Reactions 14 | . . . . . . 4 . . . . 1 . . . . 1 8 . . . . . Alert | -11 -10 -10 -10 -9 -8 -8 -8 -6 -5 -5 -5 -5 -4 -4 -4 -4 -4 -3 -3 -2 -1 -1 ------- Run | Yrd Mat Min Exi Min Mat Sto Rec Fac Fac Upp Upp Zhi Pro Fac Upp Upp War Pro Res Res Acc Com Maximum Alert Level 3 | . . . . . . . . . 3 . . . . . . . . . 1 1 2 2 Low Security (%) 77 | 100 100 100 . 100 100 100 100 100 48 . . . . 100 . . . . 56 99 61 . Level 1 13 | . . . . . . . . . 20 . . . . . . . . . 43 . 35 50 Level 2 4 | . . . . . . . . . 8 . . . . . . . . . . . 3 49 Level 3 5 | . . . . . . . . . 21 . . . . . . . . . . . . . Level 4 . | . . . . . . . . . . . . . . . . . . . . . . . Level 5 . | . . . . . . . . . . . . . . . . . . . . . . . High Security . | . . . . . . . . . . . . . . . . . . . . . . . Max Security . | . . . . . . . . . . . . . . . . . . . . . . . Peak Influence 971 | 5 85 35 . . 106 183 55 65 971 . . . . 150 . . . . 306 200 462 490 Initial 306 | . . 10 . . . 17 55 . 25 . . . . . . . . . 306 76 98 276 Average 140 | . 43 5 . . 55 78 5 7 324 . . . . 55 . . . . 194 65 155 379 Influence Increases 6757 | 15 263 122 . . 355 278 16 162 1571 80 100 . 30 379 190 257 577 70 839 378 634 441 Destroy 0b10 Robot/C 2980 | . 200 80 . . 160 120 . 80 720 40 100 . 20 100 160 180 420 60 300 60 100 80 Destroy 0b10 Robot/NC 195 | 15 5 . . . . 35 . 35 40 . . . . . . . 10 . 20 5 10 20 Destroy Leader 570 | . 42 10 . . 60 40 . 44 156 10 . . 10 20 30 30 . 10 44 32 20 12 Allied During Kill 138 | . . 2 . . . . . . . . . . . . . 2 132 . 2 . . . Successful Hack 183 | . . . . . 29 18 16 . 30 . . . . 48 . . . . . . . 42 Disable Machine 90 | . . . . . . 15 . . 15 . . . . 15 . . . . . . 45 . Anti-Garrison Action 650 | . . . . . . . . . 400 . . . . . . . . . . 200 . 50 Destroy Structure 616 | . 1 . . . 1 20 . 3 30 . . . . 16 . . . . 8 21 309 207 Advance Influence 300 | . . . . . . . . . . . . . . . . . . . 300 . . . Partial Spotted 60 | . . . . . . . . . . . . . . . . . . . . 30 15 15 Lose Combat Pursuer 975 | . 15 30 . . 105 30 . . 180 30 . . . 180 . 45 15 . 165 30 135 15 Influence Decreases 6538 | 15 236 149 . . 312 178 159 109 679 531 205 389 30 377 158 273 258 397 712 351 366 654 Entered New Map 1645 | . . 17 . . . 26 88 . 28 351 95 389 . . 2 7 18 337 4 61 66 156 Time Decay 3703 | 15 226 112 . . 232 132 71 109 431 180 110 . 30 307 156 246 50 50 458 280 190 318 Lost Part 980 | . 10 . . . 80 20 . . 220 . . . . 50 . 20 30 10 250 10 110 170 Lost Ally 210 | . . 20 . . . . . . . . . . . 20 . . 160 . . . . 10 Squads Dispatched 53 | . 3 . . . 2 3 . 6 10 . . . . 6 . . . . 10 2 2 9 Investigation 14 | . 2 . . . . 1 . . 3 . . . . 1 . . . . 1 2 1 3 Extermination 18 | . . . . . . . . 3 5 . . . . 2 . . . . 3 . 1 4 Reinforcement 17 | . 1 . . . 2 2 . 3 1 . . . . 3 . . . . 3 . . 2 Assault 1 | . . . . . . . . . 1 . . . . . . . . . . . . . Garrison 3 | . . . . . . . . . . . . . . . . . . . 3 . . . Intercept . | . . . . . . . . . . . . . . . . . . . . . . . Searches Triggered . | . . . . . . . . . . . . . . . . . . . . . . . Construction Impeded 1 | . . . . . . . . . . . . . . 1 . . . . . . . . Haulers Reinforced . | . . . . . . . . . . . . . . . . . . . . . . . Active Scanning Responses . | . . . . . . . . . . . . . . . . . . . . . . . Cargo Convoy Interrupts 1 | . . . . . . . . 1 . . . . . . . . . . . . . . Stealth | -11 -10 -10 -10 -9 -8 -8 -8 -6 -5 -5 -5 -5 -4 -4 -4 -4 -4 -3 -3 -2 -1 -1 --------- Run | Yrd Mat Min Exi Min Mat Sto Rec Fac Fac Upp Upp Zhi Pro Fac Upp Upp War Pro Res Res Acc Com Distress Signals 27 | . . . . . 5 1 . . 1 . . . . . . . . . 3 7 2 8 Communications Jammed . | . . . . . . . . . . . . . . . . . . . . . . . Distress Signals . | . . . . . . . . . . . . . . . . . . . . . . . Times Spotted 368 | . 21 10 . . 23 12 . 10 74 4 5 . 2 19 8 13 43 4 46 14 27 33 Peak Tracking Total 22 | . 5 4 . . 7 4 . 7 9 4 3 . 1 6 4 4 22 3 10 5 17 18 Tactical Retreats 43 | . 1 3 . . 4 1 . . 9 1 . . . 6 . 2 1 . 8 1 5 1 Traps | -11 -10 -10 -10 -9 -8 -8 -8 -6 -5 -5 -5 -5 -4 -4 -4 -4 -4 -3 -3 -2 -1 -1 ------- Run | Yrd Mat Min Exi Min Mat Sto Rec Fac Fac Upp Upp Zhi Pro Fac Upp Upp War Pro Res Res Acc Com Traps Triggered 9 | . 2 . . . . 2 . . 1 . . . . 1 . . 1 . . . . 2 Indirectly . | . . . . . . . . . . . . . . . . . . . . . . . Trap Hack Attempts . | . . . . . . . . . . . . . . . . . . . . . . . Triggered . | . . . . . . . . . . . . . . . . . . . . . . . Disarmed . | . . . . . . . . . . . . . . . . . . . . . . . Reprogrammed . | . . . . . . . . . . . . . . . . . . . . . . . Reused . | . . . . . . . . . . . . . . . . . . . . . . . Traps Extracted . | . . . . . . . . . . . . . . . . . . . . . . . Installed . | . . . . . . . . . . . . . . . . . . . . . . . Triggered . | . . . . . . . . . . . . . . . . . . . . . . . Objects Rigged 2 | . . . . . 1 . . 1 . . . . . . . . . . . . . . Exploded 1 | . . . . . 1 . . . . . . . . . . . . . . . . . Machines | -11 -10 -10 -10 -9 -8 -8 -8 -6 -5 -5 -5 -5 -4 -4 -4 -4 -4 -3 -3 -2 -1 -1 ---------- Run | Yrd Mat Min Exi Min Mat Sto Rec Fac Fac Upp Upp Zhi Pro Fac Upp Upp War Pro Res Res Acc Com Machines Disabled 8 | . . . . . . 1 . . 1 . . . . 1 . . . . . . 3 2 Max in Single Turn 2 | . . . . . . 1 . . 1 . . . . 1 . . . . . . 1 2 Garrison Access 6 | . . . . . . . . 1 3 . . . . . . . . . . 2 . . Phase Generator 1 | . . . . . . . . . . . . . . . . . . . . . . 1 Machines Repaired . | . . . . . . . . . . . . . . . . . . . . . . . Machines Dismantled . | . . . . . . . . . . . . . . . . . . . . . . . Machines Sabotaged . | . . . . . . . . . . . . . . . . . . . . . . . Overloaded Fab Kills . | . . . . . . . . . . . . . . . . . . . . . . . Hacking | -11 -10 -10 -10 -9 -8 -8 -8 -6 -5 -5 -5 -5 -4 -4 -4 -4 -4 -3 -3 -2 -1 -1 --------- Run | Yrd Mat Min Exi Min Mat Sto Rec Fac Fac Upp Upp Zhi Pro Fac Upp Upp War Pro Res Res Acc Com Machines Accessed 65 | . 4 . 2 . 3 5 5 6 15 . . 4 . 4 . . 1 . 5 2 2 7 Terminals 37 | . 4 . . . 3 4 4 3 4 . . . . 3 . . . . 4 1 1 6 Fabricators 7 | . . . . . . . . 1 4 . . . . 1 . . . . 1 . . . Repair Stations 5 | . . . . . . 1 . 1 2 . . . . . . . . . . . . 1 Recycling Units . | . . . . . . . . . . . . . . . . . . . . . . . Scanalyzers 2 | . . . . . . . . . 2 . . . . . . . . . . . . . Garrison Access 6 | . . . . . . . . 1 3 . . . . . . . . . . 1 1 . Total Hacks 158 | . 10 . 2 . 10 8 25 11 30 . . 17 . 8 . . 6 . 11 4 3 13 Successful 89 | . 2 . 2 . 4 4 24 3 16 . . 17 . 3 . . 6 . . 1 . 7 Failed 69 | . 8 . . . 6 4 1 8 14 . . . . 5 . . . . 11 3 3 6 Catastrophic 13 | . 1 . . . . 1 . . 2 . . . . 2 . . . . 2 1 2 2 Database Lockouts . | . . . . . . . . . . . . . . . . . . . . . . . Manual 76 | . 6 . 1 . 10 1 4 6 15 . . . . 6 . . . . 11 3 2 11 Terminals 76 | . 10 . . . 10 6 6 6 9 . . . . 5 . . . . 8 2 2 12 Fabricators 14 | . . . . . . . . 2 6 . . . . 3 . . . . 3 . . . Repair Stations 6 | . . . . . . 2 . 1 2 . . . . . . . . . . . . 1 Recycling Units . | . . . . . . . . . . . . . . . . . . . . . . . Scanalyzers 10 | . . . . . . . . . 10 . . . . . . . . . . . . . Garrison Access 8 | . . . . . . . . 2 3 . . . . . . . . . . 2 1 . Terminal Hacks 57 | . 1 . 2 . 3 3 21 . . . . 17 . 1 . . 6 . . . . 3 Record 25 | . . . 1 . . . 19 . . . . 5 . . . . . . . . . . Part Schematic 5 | . . . . . 1 . . . . . . 4 . . . . . . . . . . Robot Analysis 5 | . 1 . . . . . . . . . . 4 . . . . . . . . . . Prototype ID Bank 11 | . . . . . . . 1 . . . . 4 . . . . 6 . . . . . Open Door 3 | . . . . . . 2 . . . . . . . . . . . . . . . 1 Level Access Points 2 | . . . . . . . 1 . . . . . . . . . . . . . . 1 Branch Access Points 4 | . . . . . 2 1 . . . . . . . 1 . . . . . . . . Terminal Index 1 | . . . . . . . . . . . . . . . . . . . . . . 1 Proto ID Catalog 1 | . . . 1 . . . . . . . . . . . . . . . . . . . Fabricator Hacks 4 | . . . . . . . . 2 2 . . . . . . . . . . . . . Network Status 1 | . . . . . . . . . 1 . . . . . . . . . . . . . Load Schematic 1 | . . . . . . . . 1 . . . . . . . . . . . . . . Build 2 | . . . . . . . . 1 1 . . . . . . . . . . . . . Repair Station Hacks . | . . . . . . . . . . . . . . . . . . . . . . . Recycling Unit Hacks . | . . . . . . . . . . . . . . . . . . . . . . . Scanalyzer 5 | . . . . . . . . . 5 . . . . . . . . . . . . . Retrieve Study 5 | . . . . . . . . . 5 . . . . . . . . . . . . . Garrison Access Hacks 2 | . . . . . . . . 1 1 . . . . . . . . . . . . . Seal Access 2 | . . . . . . . . 1 1 . . . . . . . . . . . . . Unauthorized Hacks 21 | . 1 . . . 1 1 3 . 8 . . . . 2 . . . . . 1 . 4 Terminals 14 | . 1 . . . 1 1 3 . 2 . . . . 2 . . . . . . . 4 Assimilate 2 | . . . . . . . . . . . . . . . . . . . . . . 2 Botnet 10 | . 1 . . . 1 1 3 . 2 . . . . 2 . . . . . . . . Sabotage 1 | . . . . . . . . . . . . . . . . . . . . . . 1 Search 1 | . . . . . . . . . . . . . . . . . . . . . . 1 Fabricators 3 | . . . . . . . . . 3 . . . . . . . . . . . . . Fabnet 3 | . . . . . . . . . 3 . . . . . . . . . . . . . Repair Stations 1 | . . . . . . . . . 1 . . . . . . . . . . . . . Patch 1 | . . . . . . . . . 1 . . . . . . . . . . . . . Recycling Units . | . . . . . . . . . . . . . . . . . . . . . . . Scanalyzers . | . . . . . . . . . . . . . . . . . . . . . . . Garrison Access 3 | . . . . . . . . . 2 . . . . . . . . . . 1 . . Jam 3 | . . . . . . . . . 2 . . . . . . . . . . 1 . . Data Cores Recovered . | . . . . . . . . . . . . . . . . . . . . . . . Used . | . . . . . . . . . . . . . . . . . . . . . . . Hacking Detections 41 | . 4 . . . 3 3 1 5 7 . . . . 4 . . . . 5 2 2 5 Full Trace Events 6 | . 2 . . . . . . . . . . . . 1 . . . . 1 1 1 . Feedback Events 1 | . . . . . . . . . . . . . . . . . . . . . 1 . Hackware Fried 1 | . . . . . . . . . . . . . . . . . . . . . 1 . Feedback Blocked . | . . . . . . . . . . . . . . . . . . . . . . . Robot Schematics Acquired . | . . . . . . . . . . . . . . . . . . . . . . . Robots Built . | . . . . . . . . . . . . . . . . . . . . . . . Authchips . | . . . . . . . . . . . . . . . . . . . . . . . Time . | . . . . . . . . . . . . . . . . . . . . . . . Total Robot Build Rating . | . . . . . . . . . . . . . . . . . . . . . . . Part Schematics Acquired 5 | . . . . . 1 . . . . . . 4 . . . . . . . . . . Parts Built 2 | . . . . . . . . 2 . . . . . . . . . . . . . . Authchips 1 | . . . . . . . . 1 . . . . . . . . . . . . . . Time 88 | . . . . . . . . 24 64 . . . . . . . . . . . . . Total Part Build Rating 6 | . . . . . . . . 6 . . . . . . . . . . . . . . Part Studies Acquired 5 | . . . . . . . . . 5 . . . . . . . . . . . . . Parts Repaired . | . . . . . . . . . . . . . . . . . . . . . . . Time . | . . . . . . . . . . . . . . . . . . . . . . . Parts Recycled . | . . . . . . . . . . . . . . . . . . . . . . . Recycled Matter . | . . . . . . . . . . . . . . . . . . . . . . . Retrieved Matter . | . . . . . . . . . . . . . . . . . . . . . . . Retrieved Components . | . . . . . . . . . . . . . . . . . . . . . . . Parts Scanalyzed . | . . . . . . . . . . . . . . . . . . . . . . . Part Schematics Acquired . | . . . . . . . . . . . . . . . . . . . . . . . Parts Damaged . | . . . . . . . . . . . . . . . . . . . . . . . Bothacking | -11 -10 -10 -10 -9 -8 -8 -8 -6 -5 -5 -5 -5 -4 -4 -4 -4 -4 -3 -3 -2 -1 -1 ------------ Run | Yrd Mat Min Exi Min Mat Sto Rec Fac Fac Upp Upp Zhi Pro Fac Upp Upp War Pro Res Res Acc Com Used RIF Installer . | . . . . . . . . . . . . . . . . . . . . . . . Robots Hacked 16 | . . . . . . . . . . . . . 1 1 . 1 11 . 2 . . . Non-combat . | . . . . . . . . . . . . . . . . . . . . . . . Combat 16 | . . . . . . . . . . . . . 1 1 . 1 11 . 2 . . . Robot Hacks Applied . | . . . . . . . . . . . . . . . . . . . . . . . Relay Couplers Released 2 | . . . . . . . . . . . . . . . . . . . . 2 . . Machine Destruction 2 | . . . . . . . . . . . . . . . . . . . . 2 . . Fabnet Peak Effective % 9 | . . . . . . . . . . . . . 9 9 9 9 9 3 3 . . . Autooverrided 16 | . . . . . . . . . . . . . 1 1 . 1 11 . 2 . . . Robots Rewired 5 | . . . . . . . . . . . . . . . . . 5 . . . . . Allies Hacked 1 | . . . . . . . . . . . . . . . . . 1 . . . . . Hacks Repelled . | . . . . . . . . . . . . . . . . . . . . . . . Allies | -11 -10 -10 -10 -9 -8 -8 -8 -6 -5 -5 -5 -5 -4 -4 -4 -4 -4 -3 -3 -2 -1 -1 -------- Run | Yrd Mat Min Exi Min Mat Sto Rec Fac Fac Upp Upp Zhi Pro Fac Upp Upp War Pro Res Res Acc Com Total Allies 25 | . . 3 . . . . . . . . . . 1 1 . 1 16 . 2 . . 1 Largest Group 6 | . . 3 . . . . . . . . . . 1 1 . 1 6 . 1 . . 1 Highest-Rated Group 318 | . . 40 . . . . . . . . . . 49 47 . 54 318 . 64 . . 45 Highest-Rated Ally 68 | . . 16 . . . . . . . . . . 49 47 . 54 68 . 64 . . 45 Total Orders . | . . . . . . . . . . . . . . . . . . . . . . . Ally Attacks 121 | . . 11 . . . . . . . . . . . 1 . 4 97 . 8 . . . Total Damage 2955 | . . 71 . . . . . . . . . . . 40 . 38 2625 . 181 . . . Kills 12 | . . 1 . . . . . . . . . . . . . . 11 . . . . . Allies Corrupted 1 | . . . . . . . . . . . . . . . . . 1 . . . . . Allies Melted 3 | . . . . . . . . . . . . . . . . . 2 . . 1 . . Intel | -11 -10 -10 -10 -9 -8 -8 -8 -6 -5 -5 -5 -5 -4 -4 -4 -4 -4 -3 -3 -2 -1 -1 ------- Run | Yrd Mat Min Exi Min Mat Sto Rec Fac Fac Upp Upp Zhi Pro Fac Upp Upp War Pro Res Res Acc Com Active Infowar (turns) 15757 | 6 529 550 280 . 568 346 738 1668 2825 366 226 215 289 799 738 532 856 325 1144 1648 398 711 Optics 14392 | . . . . . 568 346 738 1668 2825 366 226 215 289 799 738 532 856 325 1144 1648 398 711 Sensors 1 | . . . . . . . . . . . . . . . . . . . 1 . . . Seismic 1365 | 6 529 550 280 . . . . . . . . . . . . . . . . . . . Machine Analysis 1 | . . . . . . . . . . . . . . . . . . . . 1 . . Cloaking 139 | . . . . . . . . . . . . . . . . . . . . . 139 . ECM 1 | . . . . . . . . . . . . . . . . . . . . 1 . . Robot Analysis Total 5 | . 1 . . . . . . . . . . 4 . . . . . . . . . . Derelict Logs Recovered 5 | . . . . 1 . . . . . 1 1 . 1 . . 1 . . . . . . Drone Launches . | . . . . . . . . . . . . . . . . . . . . . . . Drone Recoveries . | . . . . . . . . . . . . . . . . . . . . . . . Exploration | -11 -10 -10 -10 -9 -8 -8 -8 -6 -5 -5 -5 -5 -4 -4 -4 -4 -4 -3 -3 -2 -1 -1 ------------- Run | Yrd Mat Min Exi Min Mat Sto Rec Fac Fac Upp Upp Zhi Pro Fac Upp Upp War Pro Res Res Acc Com Turns Passed 16211 | 124 529 550 372 234 578 346 738 1668 2825 366 226 215 289 799 738 532 856 325 1144 1648 398 711 Spaces Moved 11873 | 77 321 379 308 195 262 182 487 999 1490 248 173 148 228 515 434 290 494 269 757 1484 714 1419 Core 62 | 6 . . . . 1 . . . . . . 1 . . . . . . 34 . . 20 Treads 4440 | . . . . . 176 182 487 999 1011 . . . . 136 434 290 494 . 231 . . . Legs 4689 | 71 321 379 308 195 85 . . . 479 248 173 147 228 379 . . . 269 275 1085 40 7 Wheels . | . . . . . . . . . . . . . . . . . . . . . . . Hover . | . . . . . . . . . . . . . . . . . . . . . . . Flight 2682 | . . . . . . . . . . . . . . . . . . . 217 399 674 1392 Fastest Speed 29 | 50 120 120 120 120 100 152 145 145 117 117 117 117 112 112 152 152 152 110 45 39 32 29 Average Speed 112 | 114 120 120 120 120 148 153 146 147 146 136 117 126 113 126 153 152 152 110 109 97 36 36 Slowest Speed 1450 | 120 120 120 120 120 330 155 152 225 240 187 117 1450 182 190 155 156 155 111 250 125 112 190 Overloaded Moves . | . . . . . . . . . . . . . . . . . . . . . . . Propulsion Burnouts . | . . . . . . . . . . . . . . . . . . . . . . . Robots Hopped 49 | . . . . . . . . . . . . . . . . . . . 6 8 16 19 Potential Cave-ins 7 | . . . . . . . . . . . . . . 4 . . 3 . . . . . Cave-ins Triggered 1 | . . . . . . . . . . . . . . 1 . . . . . . . . Teleports 1 | . . . . . . . . . . . . . . . . . . . 1 . . . Exploration Rate (%) 46 | 4 57 74 69 56 24 29 85 27 51 53 36 61 45 21 70 49 71 51 23 50 19 47 Regions Visited 22 Branch Regions 14 Pre-discovered Areas 5 | . . . 1 1 . . . . . . . 3 . . . . . . . . . . Known Exits Taken 8 | . . . . . 1 1 1 1 1 . . . 1 1 . 1 . . . . . . Unknown Exits Taken 14 | 1 1 1 1 1 . . . . . 1 1 1 . . 1 . 1 1 1 1 1 . Scrap Searched 20 | . . 1 . 2 . . . . . 3 4 . 3 . 4 1 . 2 . . . . Spaces Dug 48 | . . . . . . . . 3 15 . . . 1 12 . 1 1 . 4 3 8 . Terrain Destroyed 833 | . . . . . . 17 . 3 15 35 60 . 1 12 147 196 54 . 4 11 198 80 Melee 40 | . . . . . . . . 3 15 . . . 1 12 . 1 1 . 4 . 3 . Projectile 20 | . . . . . . . . . . . . . . . . . . . . 11 5 4 AOE 773 | . . . . . . 17 . . . 35 60 . . . 147 195 53 . . . 190 76 Terrain Rammed . | . . . . . . . . . . . . . . . . . . . . . . . Walls Destroyed . | . . . . . . . . . . . . . . . . . . . . . . . Machines Disabled . | . . . . . . . . . . . . . . . . . . . . . . . Actions | -11 -10 -10 -10 -9 -8 -8 -8 -6 -5 -5 -5 -5 -4 -4 -4 -4 -4 -3 -3 -2 -1 -1 --------- Run | Yrd Mat Min Exi Min Mat Sto Rec Fac Fac Upp Upp Zhi Pro Fac Upp Upp War Pro Res Res Acc Com Total 13766 | 93 401 432 310 195 374 231 511 1168 1902 270 184 178 244 616 484 343 564 291 932 1665 818 1560 Wait 638 | . 37 14 . . 29 23 5 66 176 . 1 . . 34 9 18 20 2 31 40 50 83 Move 11763 | 76 320 378 307 194 261 181 486 998 1490 247 172 147 227 513 433 289 493 268 744 1468 687 1384 Hop 39 | . . . . . . . . . . . . . . . . . . . 6 7 10 16 Pick Up 164 | 2 5 3 1 . 12 4 2 21 24 3 2 5 2 9 6 4 1 2 15 28 8 5 Fast Attach 157 | 7 . . . . 7 3 8 11 16 4 . 9 1 11 4 1 . 3 17 40 2 13 Attach 106 | . 1 4 . . 6 1 . 4 14 1 . 3 3 6 1 2 2 6 14 7 16 15 Detach 69 | . . . . . 2 2 2 7 3 1 . 1 1 4 . 1 1 2 8 13 12 9 Swap 93 | . 2 3 1 . 7 3 . 12 21 3 . 1 . 3 6 8 3 3 7 7 . 3 Drop 191 | . 1 2 1 . 5 4 7 26 29 7 2 12 1 7 7 3 1 1 11 43 11 10 Fire 221 | 8 31 18 . . 42 9 . . . 2 4 . . 4 17 13 16 3 12 8 19 15 Melee 268 | . . . . . . . . 22 126 2 3 . 9 24 1 4 2 1 62 4 3 5 Ram . | . . . . . . . . . . . . . . . . . . . . . . . Kick 16 | . 4 10 . 1 . . . . . . . . . . . . . . 1 . . . Crush 11 | . . . . . 2 1 1 . 3 . . . . . . . . . 4 . . . Escape Stasis 3 | . . . . . . . . . . . . . . 1 . . . . . . . 2 Rewire 25 | . . . . . . . . . . . . . . . . . 25 . . . . . Trap 2 | . . . . . 1 . . 1 . . . . . . . . . . . . . . Miscellaneous . | . . . . . . . . . . . . . . . . . . . . . . . Route ------- -11/Scrapyard -10/Materials (discovered 3 exits: [*Mat x2] / [*Min]) -10/Mines (discovered 3 exits: [*Mat x2] / *Exi) -10/Exiles -9/Mines -8/Materials (discovered 2 exits: *Sto x2) -8/Storage -8/Recycling -6/Factory -5/Factory (discovered 2 exits: *Fac / *Upp) -5/Upper Caves -5/Upper Caves -5/Zhirov -4/Proximity Caves -4/Factory (discovered 4 exits: *Upp x2 / Ext x2) -4/Upper Caves -4/Upper Caves -4/Warlord -3/Proximity Caves -3/Research (discovered 2 exits: *Res / Qua) -2/Research -1/Access -1/Command (discovered 2 exits: Sur x2) History --------- Turn | Location | Event 25 | -11/Scrapyard | Discovered new exit (range 15) 125 | -11/Scrapyard | Entered Materials 285 | -10/Materials | Discovered new exit (range 8) 310 | -10/Materials | Build established: Mutant 507 | -10/Materials | Discovered new exit (range 9) 636 | -10/Materials | Discovered new exit (range 15) 654 | -10/Materials | Entered Mines 658 | -10/Mines | Assisted by bots powering up and referring to "LRC-V3" 751 | -10/Mines | Lost 3 allies 784 | -10/Mines | Discovered new exit (range 5) 821 | -10/Mines | A weapon hastily lodged in a ceiling crevice suddenly fell to the ground 1030 | -10/Mines | Build established: Scavenger-Mutant 1032 | -10/Mines | Assembled infested the area 1093 | -10/Mines | Discovered new exit (range 14) 1175 | -10/Mines | Lost 3 parts (1p1n1w) 1198 | -10/Mines | Deemed a non-threat by the Exiles lab entrance 1199 | -10/Mines | Discovered new exit (range 5) 1204 | -10/Mines | Entered Exiles 1233 | -10/Exiles | Met 8R-AWN 1254 | -10/Exiles | Met EX-HEX 1309 | -10/Exiles | Met EX-DEC 1328 | -10/Exiles | Learned location of Zion (-7) 1376 | -10/Exiles | Build established: Mutant 1406 | -10/Exiles | Met EX-BIN 1423 | -10/Exiles | Aligned with FarCom system 1424 | -10/Exiles | Given EX-Vault access code 1452 | -10/Exiles | Opened EX-Vault 1458 | -10/Exiles | Found PSU Rigger 1484 | -10/Exiles | Warned to stay clear of 0b10 Research branches 1563 | -10/Exiles | Discovered new exit (range 14) 1576 | -10/Exiles | Left Exiles lab with PSU Rigger 1576 | -10/Exiles | Entered Mines 1585 | -9/Mines | Met a Derelict bent on vengeance 1772 | -9/Mines | Build established: Scavenger-Mutant 1802 | -9/Mines | Discovered new exit (range 7) 1810 | -9/Mines | Entered Materials 1810 | -8/Materials | Evolved 4 slots: Propulsion x3, Utility x1 2033 | -8/Materials | Lost 7 parts (1p4n2w) 2072 | -8/Materials | Identified exit to Storage 2228 | -8/Materials | Core integrity fell below 50% 2388 | -8/Materials | Entered Storage 2676 | -8/Storage | Identified exit to Recycling 2691 | -8/Storage | Met 01-MTF 2734 | -8/Storage | Entered Recycling 2734 | -8/Recycling | Accompanied by 1 ally (01-MTF) 2837 | -8/Recycling | Build established: Mutant 2973 | -8/Recycling | Discovered new exit (range 16) 3091 | -8/Recycling | Scanned before Scraplab entrance 3117 | -8/Recycling | Found Prototype Device 3117 | -8/Recycling | Identified 01-MTF's Autohacker 3144 | -8/Recycling | Entered Scraplab 3343 | -8/Recycling | Identified exit to Factory 3472 | -8/Recycling | Entered Factory 3472 | -6/Factory | Evolved 4 slots: Power x1, Utility x3 3749 | -6/Factory | Fabricated Katana (x2) 4639 | -6/Factory | Discovered new exit (range 19) 4667 | -6/Factory | Identified exit to Factory 4746 | -6/Factory | Cargo convoy interrupted 4873 | -6/Factory | Build established: Gladiator 5140 | -6/Factory | Entered another Factory area 5140 | -5/Factory | Evolved 2 slots: Propulsion x1, Weapon x1 5680 | -5/Factory | Discovered new exit (range 6) 5686 | -5/Factory | Identified exit to Factory 6112 | -5/Factory | Build established: Scavenger-Gladiator 6848 | -5/Factory | Lost 3 parts (2n1u) 7109 | -5/Factory | Build established: Scavenger-Mutant 7240 | -5/Factory | First assault squad dispatched 7254 | -5/Factory | Lost 3 parts (2p1u) 7318 | -5/Factory | Core integrity fell below 50% 7361 | -5/Factory | Lost 8 parts (1p6n1u) 7842 | -5/Factory | Noticed a derelict Sapper rigging charges 7885 | -5/Factory | Discovered new exit (range 21) 7912 | -5/Factory | Spotted B-75 Beast 7947 | -5/Factory | System corruption reached 10% 7964 | -5/Factory | Identified exit to Upper Caves 7965 | -5/Factory | Entered Upper Caves 8209 | -5/Upper Caves | Found DCF Scrap (14 items) 8304 | -5/Upper Caves | Discovered new exit (range 18) 8331 | -5/Upper Caves | Entered another Upper Caves area 8395 | -5/Upper Caves | Encountered a Warlord checkpoint 8490 | -5/Upper Caves | Attracted the attention of an 0b10 checkpoint 8521 | -5/Upper Caves | Build established: Mutant 8524 | -5/Upper Caves | Discovered new exit (range 19) 8532 | -5/Upper Caves | Learned 4 Factory zone layouts 8557 | -5/Upper Caves | Entered Zhirov 8563 | -5/Zhirov | Discovered new exit (range 5) 8587 | -5/Zhirov | Met Zhirov 8618 | -5/Zhirov | Found Alien Artifact 8618 | -5/Zhirov | Identified Integrated Dissipator 8618 | -5/Zhirov | Installed Integrated Dissipator, increased core heat dissipation (+20) 8635 | -5/Zhirov | Found Alien Artifact 8734 | -5/Zhirov | Learned location of Quarantine (-3) 8734 | -5/Zhirov | Learned location of Testing (-2) 8734 | -5/Zhirov | Learned location of Command (-1) 8741 | -5/Zhirov | Zhirov requested help retrieving the SGEMP Prototype 8772 | -5/Zhirov | Entered Proximity Caves 8811 | -4/Proximity Caves | Spotted B-86 Titan 8841 | -4/Proximity Caves | Core integrity fell below 20% 8842 | -4/Proximity Caves | Destroyed B-86 Titan 8848 | -4/Proximity Caves | Found Hvy. Reflective Plating 8867 | -4/Proximity Caves | Lost 5 parts (4n1u) 8890 | -4/Proximity Caves | Build established: Gladiator 9039 | -4/Proximity Caves | Learned Research stockpile data 9052 | -4/Proximity Caves | Discovered exit to Factory (range 10) 9061 | -4/Proximity Caves | Entered Factory 9061 | -4/Factory | Evolved 2 slots: Propulsion x2 9503 | -4/Factory | Identified exit to Upper Caves 9503 | -4/Factory | Identified exit to Extension 9730 | -4/Factory | Found Com. Tesla Bomb Launcher 9846 | -4/Factory | Crushed by falling debris 9847 | -4/Factory | System corruption reached 10% 9860 | -4/Factory | Entered Upper Caves 10136 | -4/Upper Caves | Build established: Mutant 10583 | -4/Upper Caves | Discovered new exit (range 10) 10598 | -4/Upper Caves | Entered another Upper Caves area 10599 | -4/Upper Caves | Identified exit to Warlord 10636 | -4/Upper Caves | Encountered a Warlord checkpoint 10679 | -4/Upper Caves | Lost 3 allies 10701 | -4/Upper Caves | System corruption reached 30% 11130 | -4/Upper Caves | Entered Warlord 11182 | -4/Warlord | System corruption cleaned by Quarantine Array 11237 | -4/Warlord | Met Warlord 11262 | -4/Warlord | Warlord's base attacked by MAIN.C 11612 | -4/Warlord | Warlord forces counterattacked 11827 | -4/Warlord | Spotted Striker 11847 | -4/Warlord | Allies destroyed Striker 11902 | -4/Warlord | Lost 3 allies 11935 | -4/Warlord | Destroyed 7 combat bots 11937 | -4/Warlord | Warlord base infiltrated, sounded retreat 11959 | -4/Warlord | Discovered new exit (range 17) 11963 | -4/Warlord | Spotted Striker 11963 | -4/Warlord | Spotted Executioner 11965 | -4/Warlord | Spotted Executioner 11986 | -4/Warlord | Entered Proximity Caves 12000 | -3/Proximity Caves | Lost 3 parts (2n1w) 12004 | -3/Proximity Caves | Lost 4 allies 12081 | -3/Proximity Caves | Spotter reported a threat 12112 | -3/Proximity Caves | Found DCF Scrap (15 items) 12177 | -3/Proximity Caves | Spotter reported a threat 12297 | -3/Proximity Caves | Discovered new exit (range 14) 12311 | -3/Proximity Caves | Entered Research 12311 | -3/Research | Evolved 2 slots: Utility x1, Weapon x1 12312 | -3/Research | Identified exit to Quarantine 12428 | -3/Research | Build established: Derelict-Mutant 12694 | -3/Research | Garrison activated, responded to threat 12749 | -3/Research | Identified Transdimensional Reconstructor 12749 | -3/Research | Warped through subspace 12774 | -3/Research | Lost 8 parts (1p4n3u) 12862 | -3/Research | System corruption reached 10% 12928 | -3/Research | Lost 6 parts (2p2n1u1w) 13363 | -3/Research | Lost 10 parts (2p5n1u2w) 13445 | -3/Research | Discovered new exit (range 12) 13455 | -3/Research | Entered another Research area 13455 | -2/Research | Warlord forces began assault on 0b10 13455 | -2/Research | Evolved 2 slots: Utility x2 13565 | -2/Research | Research machine network offline 13646 | -2/Research | Build established: Mutant 13673 | -2/Research | Found Prototype Device 13673 | -2/Research | Identified Exp. EM Disruption Field 13698 | -2/Research | Met up with Warlord 13754 | -2/Research | Borebot progress halted 13868 | -2/Research | Discovered new exit (range 14) 13903 | -2/Research | Found Fusion Bomb Launcher 14001 | -2/Research | Build established: Scavenger-Mutant 14180 | -2/Research | Found Prototype Processor 14180 | -2/Research | Identified Exp. Core Analyzer 14452 | -2/Research | Build established: Scavenger-Gunner 14738 | -2/Research | Borebot progress halted 14795 | -2/Research | Spotted Striker 14832 | -2/Research | Spotted Executioner 14835 | -2/Research | Destroyed Executioner 14875 | -2/Research | Borebot progress halted 14895 | -2/Research | Lost 3 allies 14930 | -2/Research | Spotted Striker 14930 | -2/Research | Spotted Striker 14931 | -2/Research | Destroyed Striker 14958 | -2/Research | Given Cave Seal Controls access code 15009 | -2/Research | Spotted Striker 15035 | -2/Research | Lost 6 allies 15103 | -2/Research | Entered Access 15103 | -1/Access | Evolved 2 slots: Utility x2 15203 | -1/Access | System Shield fried by hacking feedback 15475 | -1/Access | Lost 3 parts (1p2u) 15480 | -1/Access | Found Fusion Bomb Launcher 15486 | -1/Access | Spotted B-99 Colossus 15486 | -1/Access | Spotted B-99 Colossus 15500 | -1/Access | Discovered new exit (range 3) 15501 | -1/Access | Entered Command 15531 | -1/Command | Lost 6 parts (2n2u2w) 15607 | -1/Command | Lost 3 parts (1n1u1w) 15690 | -1/Command | Disengaged cave seal 15690 | -1/Command | Derelicts emerged from the dark tunnel 15690 | -1/Command | Welcomed Warlord to Command 15786 | -1/Command | Phase Generator disabled 15810 | -1/Command | Build established: Hacker-Mutant 15846 | -1/Command | Spotted B-99 Colossus 15910 | -1/Command | Disengaged cave seal 15954 | -1/Command | Identified exit to Surface 16073 | -1/Command | Spotted M Guard 16073 | -1/Command | Spotted M Guard 16073 | -1/Command | Spotted Combat Programmer 16123 | -1/Command | Spotted Combat Programmer 16126 | -1/Command | Warlord commented on Warlord statues 16157 | -1/Command | Met MAIN.C 16194 | -1/Command | Spotted Striker 16194 | -1/Command | Spotted Executioner 16195 | -1/Command | Spotted Alpha 7 16203 | -1/Command | Spotted Alpha 7 16203 | -1/Command | Spotted Striker 16203 | -1/Command | Spotted Executioner 16203 | -1/Command | Spotted Executioner 16203 | -1/Command | Spotted Executioner 16204 | -1/Command | Spotted B-99 Colossus 16205 | -1/Command | Spotted B-99 Colossus 16207 | -1/Command | Core integrity fell below 50% 16212 | -1/Command | Core integrity fell below 20% 16212 | -1/Command | Destroyed by B-99 Colossus with Multirail Last Messages --------------- 16210_ Field strength at 94. 16210_ Field strength at 88. 16210_ Biometal Leg destroyed. 16211_ Slug penetrates Door. 16211_ Penetrated by Slug. 16211_ Slug penetrates Wall. 16211_ Slug penetrates Executioner. 16212_ Stasis field depleted. 16212_ Slug penetrates Executioner. 16212_ Slug penetrates Wall. 16212_ Slug penetrates Alpha 7. 16212_ Slug penetrates Wall. 16212_ Penetrated by Slug. 16212_ Slug penetrates Wall. 16212_ Acquired 3 matter. 16212_ Slug penetrates Wall. 16212_ Penetrated by Slug. 16212_ Slug penetrates Wall. 16212_ Knocked back. 16212_ Penetrated by Slug. Map ----- +----------------------------------------------------+ | ???????# " % #?????????# | | ???????# !% #?????????# | | ???????# != #?????????# ** | | ???????## ########### ** | | ????????# [ ** | | ??????### """ !| | | ??????# !!! """ == | | ??????# !!! "" ! != ###### | | ???????## !! """" #######[####+#+#######+ | | ????????# != #?????# #?# ## | | ????????# %!!#######+### ## | | ????????# = ]%%!%" # ## | | ????????# w !**%=# # ## "" | | ????????# ####""" """#h%!!" """"" # ## ""R | | ????????# ???#"""T"""#/! # ""R"" # ## "" | | ????????? ???######### # " " # ## | | ????????? ???????????# " # ## | | ??????????????????????# % %" # ####### | | ??????????????????????# # # #?????? | | ??????????????????????# ;########## #?????? | | ?????????????????????##;;;+=#????????#######?????? | | ?????????????????????# /!%%#????????????????????? | | ????????????????????##% !=##???????????????????? | | ????????????????????# 7 %K* 7#???????????????????? | | ????????????????????## K ##???????????????????? | | ????????????????????# ^E @ ^ #???????????????????? | | ????????????????????## E %E##???????????????????? | | ????????????????????# ^ % #???????????????????? | | ?????????????o??????## ^ E##???????????????????? | | ????????????????????# #???????????????????? | | ????????????????????## BB##???????????????????? | | ?????????????????????BB BB ????????????????????? | | ???????????????????? BB ???????????????????? | | ??????????????????? ???????????????????? | | ??????????????????# ^"""""" ??????????????????? | | ??????????????????# ?????? #?????????????????? | | ??????????????????# ??????^ #?????????????????? | | ??????????????????# ???